fUST/lending_fUST_20240410
["ID","MTS","AMOUNT","RATE_DAILY","PERIOD"]
[322007064,1712682643343,-168.1706434,0.00021546,2]
[322007065,1712682643353,-947.82533218,0.00021636,2]
[322007066,1712682643362,-157.23136049,0.00021637,2]
[322007067,1712682643371,-155.0,0.00021637,2]
[322007068,1712682643379,-155.01085076,0.00021637,2]
[322007069,1712682643389,-249.00570473,0.00021637,2]
[322007070,1712682643398,-224.2054183,0.00021637,2]
[322007071,1712682643407,-253.46233178,0.00021637,2]
[322007072,1712682643417,-261.41934101,0.00021637,2]
[322007073,1712682643426,-309.8915635,0.00021637,2]
[322007074,1712682643436,-781.78611462,0.00021637,2]
[322007075,1712682643445,-156.92957174,0.00021637,2]
[322007076,1712682643454,-185.19278758,0.00021637,2]
[322007077,1712682643464,-155.97000402,0.00021637,2]
[322007078,1712682643473,-157.26509838,0.00021637,2]
[322007079,1712682643483,-1317.64238864,0.00021637,2]
[322007080,1712682643493,-276.96705132,0.00021637,2]
[322007081,1712682643502,-202.68353357,0.00021637,2]
[322007082,1712682643511,-2989.87097068,0.00021638,2]
[322007083,1712682643527,-5889.63313403,0.00021638,2]
[322007084,1712682643539,-158.51515046,0.00022,2]
[322007085,1712682643548,-638.05192735,0.00022,2]
[322007086,1712682643556,-178.49978816,0.00022,2]
[322007087,1712682643568,-3539.71915232,0.00022,2]
[322007088,1712682643577,-420.0,0.00022952,2]
[322007089,1712682643586,-242.74204017,0.00023,2]
[322007090,1712682643595,-1149.98752477,0.00023056,2]
[322007091,1712682643604,-168.17064339,0.00023189,2]
[322007092,1712682643614,-420.0,0.00023212,2]
[322007093,1712682643623,-646.49937624,0.00024209,2]
[322007094,1712682643632,-1000.0,0.00024433,2]
[322007095,1712682643641,-837.99382389,0.00024441,2]
[322007096,1712682643650,-517.09794495,0.00024474,2]
[322007097,1712682643660,-500.0,0.00024479,7]
[322007098,1712682643670,-500.0,0.00024479,7]
[322007099,1712682643679,-636.3,0.00024479,7]
[322007100,1712682643689,-947.0,0.000245,2]
[322007101,1712682643697,-1000.0,0.00024546,2]
[322007102,1712682643707,-584.88080006,0.00024655,2]
[322007103,1712682643716,-2120.63245232,0.00024655,2]
[322007104,1712682643726,-500.0,0.00024657,2]
[322007105,1712682643735,-154.93802479,0.00024657,2]
[322007106,1712682643745,-503.30373975,0.00024657,2]
[322007107,1712682643754,-500.0,0.00024657,2]
[322007108,1712682643763,-500.0,0.00024657,2]
[322007109,1712682643772,-167.280133,0.00024657,2]
[322007110,1712682643782,-216.672341,0.00024657,2]
[322007111,1712682643793,-500.0,0.00024657,2]
[322007112,1712682643803,-500.0,0.00024657,2]
[322007113,1712682643812,-500.0,0.00024657,2]
[322007114,1712682643821,-500.0,0.00024657,2]
[322007115,1712682643831,-500.0,0.00024657,2]
[322007116,1712682643841,-414.02794365,0.00024657,2]
[322007117,1712682643852,-151.0,0.00024657,2]
[322007118,1712682643862,-500.0,0.00024657,2]
[322007119,1712682643872,-151.0,0.00024657,2]
[322007120,1712682643882,-151.0,0.00024657,2]
[322007121,1712682643892,-500.0,0.00024657,2]
[322007122,1712682643901,-151.0,0.00024657,2]
[322007123,1712682643911,-500.0,0.00024657,2]
[322007124,1712682643920,-503.97053309,0.00024657,2]
[322007125,1712682643929,-505.24,0.00024657,2]
[322007126,1712682643938,-500.0,0.00024657,2]
[322007127,1712682643947,-151.0,0.00024657,2]
[322007128,1712682643956,-176.025433,0.00024657,2]
[322007129,1712682643965,-500.0,0.00024657,2]
[322007130,1712682643974,-151.0,0.00024657,2]
[322007131,1712682643994,-500.0,0.00024657,2]
[322007132,1712682644006,-500.0,0.00024657,2]
[322007133,1712682644015,-501.14359459,0.00024657,2]
[322007134,1712682644025,-500.0,0.00024657,2]
[322007135,1712682644035,-742.92,0.00024657,2]
[322007136,1712682644045,-500.0,0.00024657,2]
[322007137,1712682644055,-500.0,0.00024657,2]
[322007138,1712682644064,-500.0,0.00024657,2]
[322007139,1712682644074,-500.0,0.00024657,2]
[322007140,1712682644084,-500.0,0.00024657,2]
[322007141,1712682644093,-501.26082973,0.00024657,2]
[322007142,1712682644103,-632.3,0.00024657,2]
[322007143,1712682644113,-341.866167,0.00024657,2]
[322007144,1712682644122,-341.866167,0.00024657,2]
[322007145,1712682644131,-341.866167,0.00024657,2]
[322007146,1712682644141,-341.866167,0.00024657,2]
[322007147,1712682644150,-341.866167,0.00024657,2]
[322007148,1712682644159,-505.51089623,0.00024657,2]
[322007149,1712682644326,-341.866167,0.00024657,2]
[322007150,1712682644335,-341.866167,0.00024657,2]
[322007151,1712682644345,-341.866167,0.00024657,2]
[322007152,1712682644354,-500.0,0.00024657,2]
[322007153,1712682644364,-341.866167,0.00024657,2]
[322007154,1712682644373,-341.866167,0.00024657,2]
[322007155,1712682644383,-500.0,0.00024657,2]
[322007156,1712682644395,-500.0,0.00024657,2]
[322007157,1712682644405,-501.33888658,0.00024657,2]
[322007158,1712682644417,-500.0,0.00024657,2]
[322007159,1712682644426,-500.0,0.00024657,2]
[322007160,1712682644436,-724.76,0.00024657,2]
[322007161,1712682644445,-362.90591462,0.00024657,2]
[322007162,1712682644454,-253.69355028,0.00024657,2]
[322007163,1712682644464,-500.0,0.00024657,2]
[322007164,1712682644473,-500.0,0.00024657,2]
[322007165,1712682644484,-203.27474065,0.00024657,2]
[322007166,1712682644494,-2580.35,0.00024657,2]
[322007167,1712682644503,-962.13,0.00024657,2]
[322007168,1712682644512,-267.00492922,0.00024657,2]
[322007169,1712682644521,-500.0,0.00024657,2]
[322007170,1712682644530,-500.0,0.00024657,2]
[322007171,1712682644540,-500.0,0.00024657,2]
[322007172,1712682644550,-500.0,0.00024657,2]
[322007173,1712682644559,-500.0,0.00024657,2]
[322007174,1712682644568,-500.0,0.00024657,2]
[322007175,1712682644578,-507.09992428,0.00024657,2]
[322007176,1712682644588,-430.06899563,0.00024657,2]
[322007177,1712682644597,-544.66,0.00024657,2]
[322007178,1712682644606,-261.84257433,0.00024657,2]
[322007179,1712682644616,-791.97,0.00024657,2]
[322007180,1712682644625,-500.0,0.00024657,2]
[322007181,1712682644634,-177.93681245,0.00024657,2]
[322007182,1712682644644,-500.0,0.00024657,2]
[322007183,1712682644654,-500.0,0.00024657,2]
[322007184,1712682644663,-500.0,0.00024657,2]
[322007185,1712682644672,-591.60923677,0.00024657,2]
[322007186,1712682644682,-500.0,0.00024657,2]
[322007187,1712682644691,-500.0,0.00024657,2]
[322007188,1712682644701,-458.25182898,0.00024657,2]
[322007198,1712682651558,283.34484323,0.00020679,2]
[322007201,1712682663822,155.21440017,0.00020109,2]
[322007226,1712682802459,423.3179575,0.00020086,2]
[322007228,1712682810805,198.537417,0.00020245,2]
[322007234,1712682843579,189.939362,0.00020072,2]
[322007236,1712682857974,167.64266004,0.00020968,2]
[322007242,1712683049448,170.221043,0.0001977,2]
[322007244,1712683058215,709.2300565,0.00020044,2]
[322007245,1712683100644,662.42194847,0.00020936,2]
[322007246,1712683103509,164.12442085,0.0002094,2]
[322007247,1712683123182,207.24041701,0.0002103,2]
[322007248,1712683123476,11367.75052295,0.0002103,2]
[322007249,1712683125918,277.03921209,0.0002103,2]
[322007250,1712683127238,689.18078323,0.0002103,2]
[322007251,1712683127611,155.0,0.0002103,2]
[322007252,1712683127684,1042.91596156,0.0002103,2]
[322007253,1712683127756,562.27799089,0.0002103,2]
[322007254,1712683128721,303.81962515,0.0002103,2]
[322007255,1712683131321,2093.30000142,0.0002103,2]
[322007256,1712683131426,3735.81357685,0.0002103,2]
[322007257,1712683131456,473.2366857,0.0002103,2]
[322007258,1712683132170,203.53739799,0.0002103,2]
[322007259,1712683133370,2579.961404,0.0002103,2]
[322007260,1712683133756,193.0126642,0.0002103,2]
[322007261,1712683133846,868.36531208,0.0002103,2]
[322007262,1712683135005,936.13344748,0.0002103,2]
[322007263,1712683135347,282.7345517,0.0002103,2]
[322007264,1712683137512,2400.57020631,0.00020823,2]
[322007265,1712683137868,22745.90339692,0.0002103,2]
[322007266,1712683140835,300.0,0.0002103,2]
[322007267,1712683141758,546.04585195,0.0002103,2]
[322007268,1712683142432,300.0,0.0002103,2]
[322007269,1712683143850,435.73017158,0.0002103,2]
[322007270,1712683144044,470.02690454,0.0002103,2]
[322007271,1712683144422,185.57928704,0.0002103,2]
[322007272,1712683147421,1617.16242552,0.0002103,2]
[322007273,1712683147704,333.86897041,0.00021012,2]
[322007274,1712683149699,1485.70436416,0.0002103,2]
[322007275,1712683150499,181.0288212,0.0002103,2]
[322007276,1712683150809,24900.0,0.00020432,2]
[322007278,1712683152907,647.874677,0.00020036,2]
[322007279,1712683153382,5783.085097,0.0002103,2]
[322007280,1712683153413,524.73312661,0.0002103,2]
[322007281,1712683154100,263.43758151,0.0002103,2]
[322007282,1712683156294,2445.17979243,0.0002103,2]
[322007283,1712683160833,1963.97984376,0.0002103,2]
[322007284,1712683161892,155.0,0.0002103,2]
[322007285,1712683162511,2616.08628475,0.0002103,2]
[322007286,1712683162603,868.54910044,0.0002103,2]
[322007287,1712683167495,1670.65452215,0.0002103,2]
[322007288,1712683168309,5566.47266521,0.0002103,2]
[322007289,1712683170205,1545.877682,0.0002103,2]
[322007290,1712683171397,271.89359431,0.0002103,2]
[322007291,1712683177472,155.0,0.0002103,2]
[322007292,1712683177502,1930.68038705,0.0002103,2]
[322007293,1712683180424,1029.02845319,0.0002103,2]
[322007294,1712683200447,155.0,0.0002103,2]
[322007295,1712683200762,300.0,0.0002103,2]
[322007296,1712683201585,300.0,0.0002103,2]
[322007297,1712683202363,303.81962515,0.0002103,2]
[322007298,1712683204338,868.36531208,0.0002103,2]
[322007299,1712683206271,193.0126642,0.0002103,2]
[322007300,1712683208407,689.18078323,0.0002103,2]
[322007301,1712683208667,203.53739799,0.0002103,2]
[322007302,1712683209532,936.13344748,0.0002103,2]
[322007303,1712683210352,22745.90339692,0.0002103,2]
[322007305,1712683213815,2093.30000142,0.0002103,2]
[322007306,1712683213948,473.2366857,0.0002103,2]
[322007307,1712683214265,562.27799089,0.0002103,2]
[322007308,1712683214295,546.04585195,0.0002103,2]
[322007309,1712683215853,282.7345517,0.0002103,2]
[322007310,1712683218251,393.24397597,0.0002103,2]
[322007311,1712683220260,254.81380369,0.0002103,2]
[322007312,1712683220333,868.01195842,0.0002103,2]
[322007313,1712683220825,-6730.0,0.00021031,2]
[322007314,1712683221931,689.18078323,0.0002103,2]
[322007315,1712683223903,524.73312661,0.0002103,2]
[322007316,1712683224594,263.43758151,0.0002103,2]
[322007317,1712683225511,936.13344748,0.0002103,2]
[322007318,1712683225924,1617.16242552,0.0002103,2]
[322007320,1712683226362,22745.90339692,0.0002103,2]
[322007321,1712683228423,214.48811501,0.0002103,2]
[322007322,1712683228673,171.24824124,0.0002103,2]
[322007323,1712683229862,282.7345517,0.0002103,2]
[322007324,1712683230389,546.04585195,0.0002103,2]
[322007325,1712683230418,554.50328824,0.0002103,2]
[322007326,1712683230798,2445.17979243,0.0002103,2]
[322007327,1712683231939,619.09823733,0.0002103,2]
[322007328,1712683236217,1485.70436416,0.0002103,2]
[322007329,1712683241115,868.54910044,0.00021029,2]
[322007330,1712683243890,5783.085097,0.0002103,2]
[322007331,1712683246221,1423.8,0.0002103,2]
[322007332,1712683250252,1485.70436416,0.0002103,2]
[322007333,1712683250491,5566.47266521,0.0002103,2]
[322007335,1712683260746,300.0,0.00021029,2]
[322007336,1712683261884,5783.085097,0.0002103,2]
[322007337,1712683261975,300.0,0.00021029,2]
[322007338,1712683265046,5566.47266521,0.0002103,2]
[322007340,1712683272228,642.14224002,0.0002103,2]
[322007341,1712683280324,1013.12488908,0.0002103,2]
[322007342,1712683281968,5585.46591007,0.0002103,2]
[322007343,1712683285070,1924.85564789,0.0002103,2]
[322007344,1712683316424,524.73312661,0.0002103,2]
[322007345,1712683318790,546.04585195,0.0002103,2]
[322007346,1712683319621,868.54910044,0.0002103,2]
[322007347,1712683320686,300.0,0.00021029,2]
[322007348,1712683321922,300.0,0.00021029,2]
[322007350,1712683332447,239.41126208,0.0002103,2]
[322007351,1712683335658,868.54910044,0.0002103,2]
[322007352,1712683336803,562.79218199,0.00021029,2]
[322007353,1712683336889,546.04585195,0.0002103,2]
[322007354,1712683337173,263.43758151,0.00021029,2]
[322007355,1712683338553,1307.52332084,0.00021029,2]
[322007356,1712683350794,562.79218199,0.0002103,2]
[322007357,1712683352789,546.04585195,0.0002103,2]
[322007358,1712683354540,1307.52332084,0.0002103,2]
[322007359,1712683358162,263.37349984,0.0002103,2]
[322007360,1712683358200,539.42753785,0.0002103,2]
[322007370,1712683370537,1307.52332084,0.0002103,2]
[322007371,1712683370797,686.32213534,0.0002103,2]
[322007372,1712683372791,558.78901408,0.0002103,2]
[322007373,1712683380676,300.0,0.00021029,2]
[322007374,1712683381412,300.0,0.00021029,2]
[322007375,1712683392553,449.22586263,0.0002103,2]
[322007376,1712683440697,300.0,0.00021029,2]
[322007377,1712683442889,300.0,0.00021029,2]
[322007378,1712683500887,300.0,0.00021029,2]
[322007379,1712683501696,300.0,0.00021029,2]
[322007380,1712683509612,164.12442082,0.00020932,2]
[322007381,1712683513482,2074.04646429,0.0002103,2]
[322007383,1712683550362,465.22738976,0.0001893,2]
[322007384,1712683560728,300.0,0.00021029,2]
[322007385,1712683564298,300.0,0.00021029,2]
[322007386,1712683582482,452.42744607,0.00019978,2]
[322007387,1712683585205,230.79983439,0.0002103,2]
[322007388,1712683620770,300.0,0.00021029,2]
[322007389,1712683621450,300.0,0.00021029,2]
[322007390,1712683626295,4068.68095015,0.0002103,2]
[322007391,1712683680757,300.0,0.00021029,2]
[322007392,1712683681023,579.61920492,0.00020931,2]
[322007393,1712683683014,300.0,0.00021029,2]
[322007395,1712683712635,1029.02845319,0.0002103,2]
[322007397,1712683723166,155.0,0.0002103,2]
[322007398,1712683728262,323.937338,0.0002048,2]
[322007399,1712683734548,1029.02845319,0.0002103,2]
[322007400,1712683740646,300.0,0.00021029,2]
[322007401,1712683741470,155.0,0.0002103,2]
[322007402,1712683742428,300.0,0.00021029,2]
[322007403,1712683750554,654.74167835,0.0002103,2]
[322007404,1712683756682,4539.5849275,0.00020442,2]
[322007406,1712683765454,155.0,0.0002103,2]
[322007407,1712683781459,278.35626808,0.0002103,2]
[322007408,1712683801051,300.0,0.00021029,2]
[322007409,1712683804539,300.0,0.00021029,2]
[322007410,1712683823342,167.64266004,0.0002093,2]
[322007462,1712683832509,-500.0,0.0002103,2]
[322007463,1712683832521,-156.68813882,0.0002103,2]
[322007464,1712683832530,-254.76142661,0.0002103,2]
[322007465,1712683832539,-459.21606194,0.0002103,2]
[322007466,1712683832548,-500.0,0.0002103,2]
[322007467,1712683832559,-379.8057633,0.0002103,2]
[322007468,1712683832568,-383.22313028,0.0002103,2]
[322007469,1712683832578,-476.79494397,0.0002103,2]
[322007470,1712683832589,-187.90606758,0.0002103,2]
[322007472,1712683832598,-467.85668109,0.0002103,2]
[322007474,1712683832608,-12405.52113988,0.00021031,2]
[322007476,1712683832617,-687.19966601,0.00021031,2]
[322007478,1712683832627,-168.07944781,0.00021031,2]
[322007480,1712683832639,-919.14391164,0.00021031,2]
[322007483,1712683832649,-407.69592082,0.00021031,2]
[322007486,1712683832660,-5513.16016754,0.00021031,2]
[322007490,1712683832672,-1049.03172479,0.00021031,2]
[322007494,1712683832688,-4215.87088074,0.00021031,2]
[322007563,1712683838156,-2975.85174552,0.00021031,2]
[322007565,1712683838167,-19600.41242656,0.00021031,2]
[322007567,1712683838179,-3622.11213401,0.00021031,2]
[322007590,1712683840044,-13930.53586731,0.00021031,2]
[322007591,1712683840056,-8077.82286562,0.00021031,2]
[322007592,1712683840065,-205.70180304,0.00021031,2]
[322007593,1712683840074,-240.67684413,0.00021031,2]
[322007594,1712683840083,-1579.80828561,0.00021031,2]
[322007595,1712683840093,-1545.877682,0.00021031,2]
[322007596,1712683840102,-1670.65452215,0.00021031,2]
[322007597,1712683840112,-271.89359431,0.00021031,2]
[322007598,1712683840121,-107.56440316,0.00021031,2]
[322007599,1712683840132,-47.43559684,0.00021031,2]
[322007600,1712683840142,-298.06440316,0.00021031,2]
[322007628,1712683844225,-341.52850312,0.00021031,2]
[322007629,1712683844241,-858.47018695,0.00021031,2]
[322007630,1712683844279,-418.08000009,0.00021031,2]
[322007634,1712683845075,-14.53729373,0.00021031,2]
[322007635,1712683845084,-2093.30000142,0.00021031,2]
[322007636,1712683845093,-689.18078323,0.00021031,2]
[322007637,1712683845103,-935.87904205,0.00021031,2]
[322007638,1712683845112,-1617.16242552,0.00021031,2]
[322007639,1712683845123,-2756.23400038,0.00021031,2]
[322007642,1712683845574,439.5708532,0.0002051,2]
[322007646,1712683846048,-12826.18590946,0.00021031,2]
[322007655,1712683851647,310.15159317,0.00018931,2]
[322007657,1712683861053,188.6336911,0.0002103,2]
[322007659,1712683863586,300.0,0.0002103,2]
[322007660,1712683868470,435.73017158,0.0002103,2]
[322007661,1712683880987,282.7345517,0.0002103,2]
[322007663,1712683892248,521.22779236,0.0002103,2]
[322007664,1712683904311,303.81962515,0.0002103,2]
[322007665,1712683916224,868.54910044,0.0002103,2]
[322007666,1712683920667,300.0,0.0002103,2]
[322007667,1712683921670,300.0,0.0002103,2]
[322007669,1712683928356,2273.61255916,0.0002103,2]
[322007670,1712683933341,6908.40313979,0.0002103,2]
[322007671,1712683940466,6908.40313979,0.0002103,2]
[322007673,1712683947366,6908.40313979,0.0002103,2]
[322007676,1712684038319,407.69592082,0.0002103,2]
[322007677,1712684040769,300.0,0.0002103,2]
[322007678,1712684041199,1087.22335945,0.0002103,2]
[322007679,1712684041447,300.0,0.0002103,2]
[322007688,1712684056329,407.59656825,0.0002103,2]
[322007689,1712684057181,1087.22335945,0.0002103,2]
[322007690,1712684059034,271.89359431,0.0002103,2]
[322007691,1712684059985,435.73017158,0.0002103,2]
[322007692,1712684060582,188.6336911,0.0002103,2]
[322007693,1712684073032,257.22726633,0.0002103,2]
[322007694,1712684073988,173.65364145,0.0002103,2]
[322007695,1712684078556,206.25749567,0.0002103,2]
[322007696,1712684079031,282.7345517,0.0002103,2]
[322007697,1712684079187,1087.22335945,0.0002103,2]
[322007698,1712684083224,240.67684413,0.0002103,2]
[322007700,1712684086030,19135.52113988,0.0002103,2]
[322007702,1712684097033,157.08309628,0.0002103,2]
[322007703,1712684099253,240.67684413,0.0002103,2]
[322007704,1712684100038,19135.52113988,0.0002103,2]
[322007705,1712684101211,1087.22335945,0.0002103,2]
[322007706,1712684119198,1087.22335945,0.0002103,2]
[322007707,1712684120055,19135.52113988,0.0002103,2]
[322007708,1712684121359,240.67684413,0.0002103,2]
[322007710,1712684137505,182.84346532,0.0002103,2]
[322007711,1712684138254,1280.95195748,0.0002103,2]
[322007713,1712684143195,365.8303706,0.0002103,2]
[322007714,1712684153298,434.8349292,0.00018931,2]
[322007715,1712684160695,300.0,0.0002103,2]
[322007717,1712684220864,300.0,0.0002103,2]
[322007718,1712684221531,300.0,0.0002103,2]
[322007720,1712684229905,399.874452,0.00020668,2]
[322007723,1712684258130,24900.0,0.00020668,2]
[322007726,1712684276874,4634.79058063,0.0002103,2]
[322007728,1712684283639,300.0,0.0002103,2]
[322007732,1712684337756,507.16680434,0.00020933,2]
[322007733,1712684340768,300.0,0.0002103,2]
[322007735,1712684400997,300.0,0.0002103,2]
[322007738,1712684454363,289.8899528,0.00018931,2]
[322007739,1712684460645,300.0,0.0002103,2]
[322007740,1712684461336,300.0,0.0002103,2]
[322007746,1712684558128,166.82695456,0.00020931,2]
[322007748,1712684580736,300.0,0.0002103,2]
[322007749,1712684581443,300.0,0.0002103,2]
[322007752,1712684700989,300.0,0.0002103,2]
[322007753,1712684703172,300.0,0.0002103,2]
[322007756,1712684720803,1878.29113948,0.0002103,2]
[322007758,1712684738667,1000.0,0.00019887,2]
[322007760,1712684755852,193.25996853,0.0001893,2]
[322007761,1712684786316,781.78611462,0.0002103,2]
[322007763,1712684794711,2616.08628475,0.0002103,2]
[322007764,1712684795754,2935.70815242,0.0002103,2]
[322007765,1712684798522,193.0126642,0.0002103,2]
[322007767,1712684820789,300.0,0.0002103,2]
[322007768,1712684843034,3291.0761489,0.0002103,2]
[322007769,1712684855781,-7163.48348708,0.00021031,2]
[322007770,1712684855807,-300.0,0.00021031,2]
[322007771,1712684855834,-561.44051241,0.00021032,2]
[322007772,1712684855857,-221.63830907,0.00021032,2]
[322007773,1712684855880,-1809.7039487,0.00021032,2]
[322007774,1712684855903,-309.9349453,0.00021032,2]
[322007775,1712684855927,-58984.79781209,0.00021032,2]
[322007776,1712684855953,-207.18381603,0.00021033,2]
[322007777,1712684855975,-425.38105306,0.00021033,2]
[322007778,1712684855998,-188.3211388,0.00021033,2]
[322007779,1712684856021,-3323.33707912,0.00021033,2]
[322007780,1712684856047,-1866.00896233,0.00021033,2]
[322007781,1712684856070,-184.42210436,0.00021033,2]
[322007782,1712684856093,-158.93894866,0.00021035,2]
[322007783,1712684856117,-615.59572884,0.00021051,2]
[322007784,1712684856140,-174.3013573,0.00021852,2]
[322007785,1712684856164,-377.05961285,0.00021999,2]
[322007786,1712684856187,-378.52419869,0.00021999,2]
[322007787,1712684856211,-638.05192735,0.00022,2]
[322007788,1712684856233,-3718.21894048,0.00022,2]
[322007789,1712684856255,-176.298426,0.00022271,2]
[322007790,1712684856278,-18666.8290242,0.00022463,2]
[322007791,1712684856304,-199.937226,0.00022558,2]
[322007792,1712684856326,-420.0,0.00022876,2]
[322007793,1712684856347,-242.74204017,0.00023,2]
[322007794,1712684856369,-420.0,0.00023133,2]
[322007795,1712684856390,-623.02649194,0.00023332,2]
[322007796,1712684856411,-153.0,0.00023616,2]
[322007797,1712684856432,-153.0,0.00023616,2]
[322007798,1712684856453,-153.0,0.00023616,2]
[322007799,1712684856475,-153.0,0.00023616,2]
[322007800,1712684856495,-153.0,0.00023616,2]
[322007801,1712684857479,-153.0,0.00023616,2]
[322007802,1712684857509,-153.0,0.00023616,2]
[322007803,1712684858084,-153.0,0.00023616,2]
[322007804,1712684858108,-153.0,0.00023616,2]
[322007805,1712684858132,-155.223453,0.00023616,2]
[322007806,1712684858156,-153.0,0.000237,2]
[322007807,1712684858179,-193.25996853,0.0002393,2]
[322007808,1712684858954,1194.59509465,0.0002103,2]
[322007809,1712684861241,365.20859837,0.00023615,2]
[322007812,1712684983745,94206.53579462,0.000236,2]
[322007813,1712685020879,5407.97,0.000262,30]
[322007852,1712685032762,-1089.28250272,0.000236,2]
[322007866,1712685032942,-1404.34861971,0.000236,2]
[322007868,1712685032954,-1477.00543519,0.000236,2]
[322007870,1712685032966,-400.0,0.000236,2]
[322007873,1712685032982,-66643.06063762,0.000236,2]
[322007874,1712685032993,-21607.19761914,0.000236,2]
[322007902,1712685038309,-2617.77876522,0.000236,2]
[322007905,1712685038321,-1110.81762645,0.000236,2]
[322007907,1712685038333,-116591.5179276,0.000236,2]
[322008423,1712685043355,-18909.3726406,0.000236,2]
[322008469,1712685043798,-23568.15549627,0.000236,2]
[322013757,1712686262046,-511.0,0.00021372,2]
[322013966,1712686322661,228.63734368,0.00019272,2]
[322013967,1712686400579,1686.35153902,0.00020271,2]
[322013968,1712686410302,1277.68277075,0.000262,30]
[322013969,1712686410324,722.31722925,0.000262,30]
[322013982,1712686771610,186.1776351,0.00020866,2]
[322014061,1712686835882,176.298426,0.00020675,2]
[322014098,1712686939940,473.2366857,0.0002103,2]
[322014099,1712686943011,211.40870572,0.0002103,2]
[322014100,1712686944216,635.75023313,0.0002103,2]
[322014101,1712686945660,687.19966601,0.0002103,2]
[322014102,1712687003063,2000.0,0.000262,30]
[322014113,1712687288503,199.937226,0.00020643,2]
[322014114,1712687340549,983.10631726,0.00020643,2]
[322014115,1712687354549,546.17017626,0.00020643,2]
[322014117,1712687372544,546.17017626,0.00020643,2]
[322014119,1712687393590,161.68175114,0.00020933,2]
[322014120,1712687394672,284.55466183,0.00020643,2]
[322014121,1712687398140,300.0859513,0.0002103,2]
[322014122,1712687412553,284.55466183,0.00020643,2]
[322014123,1712687419965,473.2366857,0.0002103,2]
[322014124,1712687430546,284.55466183,0.0002103,2]
[322014129,1712687433252,-687.19966601,0.00021031,2]
[322014130,1712687433262,-12.80033399,0.00021158,2]
[322014131,1712687433274,-175.44162997,0.00021158,2]
[322014132,1712687433284,-300.0,0.00021349,2]
[322014133,1712687433294,-300.0,0.00021349,2]
[322014134,1712687433303,-23295.4640564,0.0002135,2]
[322014135,1712687433313,-1595.18557718,0.00021372,2]
[322014136,1712687433322,-1389.05014247,0.00022998,2]
[322014455,1712687438547,-262.3827165,0.00022998,2]
[322014456,1712687438601,-1568.28365758,0.00022998,2]
[322014491,1712687440586,-498.50242393,0.00022998,2]
[322014492,1712687440596,-638.05192735,0.00022999,2]
[322014493,1712687440605,-242.74204017,0.00023055,2]
[322014494,1712687440614,-811.84327379,0.00023056,2]
[322014495,1712687440625,-319.0,0.00023214,2]
[322014496,1712687440634,-153.0,0.00023378,2]
[322014497,1712687440644,-153.0,0.00023378,2]
[322014498,1712687440653,-153.0,0.00023378,2]
[322014499,1712687440663,-153.0,0.00023378,2]
[322014500,1712687440672,-153.0,0.00023378,2]
[322014501,1712687440681,-153.0,0.00023378,2]
[322014502,1712687440690,-153.0,0.00023378,2]
[322014503,1712687440699,-153.0,0.00023378,2]
[322014504,1712687440709,-153.0,0.00023378,2]
[322014506,1712687440718,-153.0,0.00023378,2]
[322014508,1712687440727,-153.0,0.00023378,2]
[322014510,1712687440736,-307.1119477,0.00023378,2]
[322014512,1712687440745,-307.76623,0.00023378,2]
[322014514,1712687440754,-153.0,0.00023378,2]
[322014516,1712687440764,-153.0,0.00023478,2]
[322014518,1712687440772,-153.0,0.00023478,2]
[322014520,1712687440782,-153.0,0.00023478,2]
[322014522,1712687440791,-420.0,0.00023484,2]